bitfinex-derivatives/quotes_BTCF0:USTF0_20241019
["timestamp","ask_amount","ask_price","bid_price","bid_amount"]
[1729336143148,0.09274946,68316.0,68315.0,0.0002]
[1729336143449,0.09272419,68316.0,68315.0,0.0002]
[1729336143743,0.03434112,68316.0,68315.0,0.0002]
[1729336143949,0.03434112,68316.0,68315.0,0.066068]
[1729336144743,0.03434112,68316.0,68315.0,0.0002]
[1729336145343,0.09271904,68316.0,68315.0,0.0002]
[1729336149358,0.09260204,68316.0,68315.0,0.0002]
[1729336150149,0.03434112,68316.0,68315.0,0.0921925]
[1729336158956,0.03434112,68316.0,68315.0,0.09222428]
[1729336165463,0.09257,68316.0,68315.0,0.0002]
[1729336168263,0.03434112,68316.0,68315.0,0.0002]
[1729336174465,0.03434112,68316.0,68315.0,0.09244572]
[1729336178469,0.03434112,68316.0,68315.0,0.09242606]
[1729336182084,0.03434112,68316.0,68315.0,0.09241512]
[1729336183375,0.03434112,68316.0,68315.0,0.0002]
[1729336183581,0.03434112,68316.0,68315.0,0.09241726]
[1729336185581,0.03434112,68316.0,68315.0,0.09221726]
[1729336187401,0.0002,68316.0,68313.0,0.065869]
[1729336187687,0.065868,68314.0,68313.0,0.065869]
[1729336187872,0.066068,68314.0,68313.0,0.065869]
[1729336188275,0.065869,68313.0,68312.0,0.02593034]
[1729336188592,0.065869,68313.0,68310.0,0.065872]
[1729336188593,0.066069,68313.0,68310.0,0.426672]
[1729336188885,0.0002,68311.0,68310.0,0.426672]
[1729336190195,0.066071,68311.0,68310.0,0.426672]
[1729336194395,0.066071,68311.0,68310.0,0.3608]
[1729336195490,0.066071,68311.0,68310.0,0.56040393]
[1729336197992,0.066071,68311.0,68310.0,0.56036872]
[1729336198295,0.066071,68311.0,68310.0,0.19956872]
[1729336201493,0.066071,68311.0,68309.0,0.05739371]
[1729336201494,0.065872,68310.0,68309.0,0.05739371]
[1729336201688,0.066072,68310.0,68309.0,0.25695025]
[1729336202495,0.066072,68310.0,68309.0,0.05739371]
[1729336205702,0.066072,68310.0,68309.0,0.02589371]
[1729336205999,0.065874,68308.0,68307.0,0.427675]
[1729336206192,0.066074,68308.0,68307.0,0.426675]
[1729336207504,0.066074,68308.0,68307.0,0.45342665]
[1729336210501,0.066074,68308.0,68307.0,0.7750724]
[1729336211007,0.066074,68308.0,68307.0,0.77506646]
[1729336212905,0.066074,68308.0,68307.0,0.65298182]
[1729336213295,0.066074,68308.0,68307.0,0.29218182]
[1729336213502,0.066074,68308.0,68307.0,0.65298182]
[1729336213801,0.066074,68308.0,68307.0,0.29218182]
[1729336213997,0.066074,68308.0,68307.0,0.22630682]
[1729336215712,0.066074,68308.0,68307.0,0.11909355]
[1729336216806,0.066074,68308.0,68307.0,0.18496855]
[1729336217723,0.066074,68308.0,68307.0,0.09262665]
[1729336225627,0.066074,68308.0,68307.0,0.29255285]
[1729336226121,0.066074,68308.0,68307.0,0.22667785]
[1729336227326,0.066074,68308.0,68307.0,0.29255285]
[1729336228924,0.066074,68308.0,68307.0,0.22667785]
[1729336230420,0.066074,68308.0,68307.0,0.22687976]
[1729336232029,0.066074,68308.0,68307.0,0.11935867]
[1729336232630,0.066074,68308.0,68307.0,0.02675165]
[1729336232933,0.065876,68307.0,68305.0,0.065876]
[1729336233134,0.066076,68306.0,68305.0,0.065876]
[1729336235335,0.066076,68306.0,68305.0,0.09182973]
[1729336240640,0.066076,68306.0,68305.0,0.28690902]
[1729336241341,0.066076,68306.0,68305.0,0.64770902]
[1729336241741,0.066076,68306.0,68305.0,0.65277787]
[1729336242444,0.066076,68306.0,68305.0,0.65278317]
[1729336242639,0.066076,68306.0,68305.0,0.76986444]
[1729336243544,0.066076,68306.0,68305.0,0.65278317]
[1729336250151,0.066076,68306.0,68305.0,0.65280994]
[1729336255651,0.066076,68306.0,68305.0,0.45262973]
[1729336260951,0.066076,68306.0,68305.0,0.38675373]
[1729336262657,0.066076,68306.0,68305.0,0.58706704]
[1729336263048,0.066076,68306.0,68305.0,0.58705596]
[1729336263353,0.066076,68306.0,68305.0,0.22625596]
[1729336263552,0.066076,68306.0,68305.0,0.58705596]
[1729336265555,0.066076,68306.0,68305.0,0.22625596]
[1729336265753,0.066076,68306.0,68305.0,0.58705596]
[1729336268162,0.066076,68306.0,68305.0,0.58729881]
[1729336269659,0.066076,68306.0,68305.0,0.22649881]
[1729336269862,0.066076,68306.0,68305.0,0.58729881]
[1729336271556,0.066076,68306.0,68305.0,0.22649881]
[1729336271863,0.066076,68306.0,68305.0,0.58729881]
[1729336273261,0.066076,68306.0,68305.0,0.70438008]
[1729336275162,0.066076,68306.0,68305.0,0.34358008]
[1729336275359,0.066076,68306.0,68305.0,0.70438008]
[1729336276962,0.066076,68306.0,68305.0,0.58729881]
[1729336277661,0.066076,68306.0,68305.0,0.38675373]
[1729336282971,0.066076,68306.0,68305.0,0.3608]
[1729336285672,0.066076,68306.0,68305.0,0.56153258]
[1729336285971,0.066076,68306.0,68305.0,0.70485856]
[1729336286575,0.066076,68306.0,68305.0,0.58771278]
[1729336286772,0.066076,68306.0,68305.0,0.70485856]
[1729336286977,0.066076,68306.0,68305.0,0.58771278]
[1729336287279,0.066076,68306.0,68305.0,0.70485856]
[1729336288174,0.066076,68306.0,68305.0,0.34405856]
[1729336288368,0.066076,68306.0,68305.0,0.70485856]
[1729336289479,0.066076,68306.0,68305.0,0.77073556]
[1729336291181,0.0002,68306.0,68305.0,0.77073556]
[1729336291374,0.0002,68311.0,68305.0,0.70485856]
[1729336291679,0.3608,68316.0,68308.0,0.11714578]
[1729336291680,0.065871,68312.0,68308.0,0.11714578]
[1729336291879,0.426667,68316.0,68313.0,0.065869]
[1729336292076,0.426667,68316.0,68314.0,0.09288673]
[1729336292278,0.065867,68316.0,68315.0,0.09280806]
[1729336292670,0.065867,68316.0,68314.0,0.065868]
[1729336292871,0.066068,68315.0,68314.0,0.065868]
[1729336295584,0.0376115,68315.0,68314.0,0.31369134]
[1729336297887,0.0376115,68315.0,68314.0,0.24782334]
[1729336298083,0.0376115,68315.0,68314.0,0.02695653]
[1729336298282,0.0376115,68315.0,68311.0,0.3608]
[1729336298283,0.06587,68312.0,68311.0,0.3608]
[1729336298477,0.06607,68312.0,68311.0,0.3608]
[1729336300085,0.06607,68312.0,68311.0,0.38759046]
[1729336300672,0.06607,68312.0,68311.0,0.48026081]
[1729336301187,0.06607,68312.0,68311.0,0.11946081]
[1729336301682,0.06607,68312.0,68311.0,0.1194646]
[1729336302586,0.06607,68312.0,68311.0,0.18533729]
[1729336303885,0.0002,68312.0,68311.0,0.40429885]
[1729336304680,0.0002,68312.0,68311.0,0.50680025]
[1729336306180,0.0002,68312.0,68311.0,0.8725044]
[1729336306787,0.0002,68312.0,68311.0,1.9066012]
[1729336307091,0.065869,68314.0,68313.0,0.065869]
[1729336307279,0.065869,68314.0,68313.0,0.26593939]
[1729336307477,0.065869,68314.0,68313.0,1.52409611]
[1729336307978,0.065869,68314.0,68313.0,1.32402572]
[1729336309187,0.065869,68314.0,68313.0,0.88486572]
[1729336310286,0.065869,68314.0,68313.0,0.28486572]
[1729336311086,0.3608,68326.0,68313.0,0.21899672]
[1729336311283,0.3608,68326.0,68320.0,0.0002]
[1729336312480,0.065862,68321.0,68320.0,0.0002]
[1729336314090,0.0383672,68321.0,68320.0,0.0002]
[1729336315786,0.0383672,68321.0,68320.0,0.09271129]
[1729336316392,0.0383672,68321.0,68320.0,0.09271191]
[1729336317591,0.0383672,68321.0,68320.0,0.11942584]
[1729336322789,0.0383672,68321.0,68320.0,0.02691393]
[1729336330800,0.0383672,68321.0,68320.0,0.11942166]
[1729336331502,0.0383672,68321.0,68320.0,0.11943117]
[1729336334692,0.0383672,68321.0,68320.0,0.22581911]
[1729336339210,0.0383672,68321.0,68320.0,0.22552702]
[1729336339914,0.065862,68321.0,68320.0,0.94712702]
[1729336342200,0.065862,68321.0,68320.0,0.22552702]
[1729336342401,0.065862,68321.0,68320.0,0.94712702]
[1729336342809,0.065862,68321.0,68320.0,0.97722702]
[1729336343205,0.065862,68321.0,68320.0,1.0987341]
[1729336344401,0.065862,68321.0,68320.0,0.97722702]
[1729336345412,0.065862,68321.0,68320.0,1.09432816]
[1729336345809,0.065862,68321.0,68320.0,0.7273626]
[1729336345810,0.19224575,68321.0,68320.0,0.7273626]
[1729336346005,0.19224575,68321.0,68320.0,0.7216]
[1729336348820,0.19224575,68321.0,68320.0,0.74806267]
[1729336352914,0.065862,68321.0,68320.0,1.0497506]
[1729336353511,0.065862,68321.0,68320.0,1.05043906]
[1729336353817,0.065862,68321.0,68320.0,0.84056849]
[1729336355218,0.065862,68321.0,68320.0,0.94303547]
[1729336355622,0.065862,68321.0,68320.0,1.04912381]
[1729336355824,0.065862,68321.0,68320.0,0.94303547]
[1729336356912,0.065862,68321.0,68320.0,0.84056849]
[1729336358426,0.065862,68321.0,68320.0,0.83942908]
[1729336358725,0.065862,68321.0,68320.0,0.94189606]
[1729336358925,0.065862,68321.0,68320.0,0.83942908]
[1729336360822,0.065862,68321.0,68320.0,0.74806267]
[1729336367735,0.065862,68321.0,68320.0,0.02646267]
[1729336367932,0.065862,68321.0,68320.0,0.7216]
[1729336368629,0.12704097,68321.0,68320.0,0.7216]
[1729336368836,0.19290297,68321.0,68320.0,0.7216]
[1729336370031,0.065864,68319.0,68317.0,0.065865]
[1729336370332,0.05898677,68318.0,68317.0,0.09179436]
[1729336370523,0.05898677,68318.0,68317.0,0.81339436]
[1729336370923,0.12485177,68318.0,68317.0,0.81339436]
[1729336373925,0.12485177,68318.0,68317.0,0.09179436]
[1729336374129,0.12485177,68318.0,68317.0,0.81339436]
[1729336374533,0.19311303,68318.0,68317.0,0.81339436]
[1729336375837,0.066065,68318.0,68317.0,0.94519868]
[1729336376341,0.066065,68318.0,68317.0,1.01106368]
[1729336377840,0.066065,68318.0,68317.0,1.12816482]
[1729336379843,0.066065,68318.0,68317.0,1.01106368]
[1729336380236,0.066065,68318.0,68317.0,0.28946368]
[1729336380436,0.066065,68318.0,68317.0,1.01106368]
[1729336382542,0.065861,68322.0,68321.0,0.065862]
[1729336382739,0.065861,68322.0,68321.0,0.26353132]
[1729336382938,0.19126835,68322.0,68321.0,0.065862]
[1729336386644,0.065864,68319.0,68318.0,0.0639]
[1729336386949,0.12409483,68319.0,68318.0,0.0639]
[1729336391144,0.066064,68319.0,68318.0,0.26237297]
[1729336393246,0.066064,68319.0,68318.0,0.98397297]
[1729336396348,0.066064,68319.0,68318.0,0.98484989]
[1729336396953,0.066064,68319.0,68318.0,0.38036042]
[1729336397246,0.066064,68319.0,68318.0,1.10196042]
[1729336397847,0.066064,68319.0,68318.0,0.98484989]
[1729336398147,0.066064,68319.0,68318.0,0.7855]
[1729336403649,0.066064,68319.0,68318.0,0.0639]
[1729336403947,0.066064,68319.0,68318.0,0.7855]
[1729336404550,0.066064,68319.0,68318.0,0.7542]
[1729336406050,0.066064,68319.0,68318.0,0.95096693]
[1729336409954,0.066064,68319.0,68318.0,0.22936693]
[1729336410155,0.066064,68319.0,68318.0,0.95096693]
[1729336412947,0.066064,68319.0,68318.0,0.7542]
[1729336419959,0.066064,68319.0,68318.0,0.84536205]
[1729336420662,0.066064,68319.0,68318.0,0.84533546]
[1729336424458,0.066064,68319.0,68318.0,0.12373546]
[1729336424660,0.066064,68319.0,68318.0,0.84533546]
[1729336425561,0.066064,68319.0,68318.0,0.84546253]
[1729336426757,0.066064,68319.0,68318.0,0.12386253]
[1729336426949,0.066064,68319.0,68318.0,0.84546253]
[1729336427752,0.066064,68319.0,68318.0,0.81286253]
[1729336430571,0.066064,68319.0,68318.0,0.81326831]
[1729336435167,0.066064,68319.0,68318.0,0.7216]
[1729336443067,0.066064,68319.0,68318.0,0.81354032]
[1729336443572,0.066064,68319.0,68318.0,0.81349732]
[1729336448372,0.066064,68319.0,68318.0,0.81373236]
[1729336449776,0.066064,68319.0,68318.0,0.9161655]
[1729336450171,0.066064,68319.0,68318.0,0.09213236]
[1729336450367,0.066064,68319.0,68318.0,0.81373236]
[1729336454978,0.066064,68319.0,68318.0,0.9161655]
[1729336456377,0.066064,68319.0,68318.0,1.0231419]
[1729336456572,0.066064,68319.0,68318.0,0.9161655]
[1729336457083,0.066064,68319.0,68318.0,1.02315482]
[1729336458179,0.066064,68319.0,68318.0,0.7216]
[1729336458880,0.065865,68318.0,68317.0,0.02592936]
[1729336459175,0.066065,68318.0,68317.0,0.7216]
[1729336460886,0.12432293,68318.0,68317.0,0.7216]
[1729336461676,0.066065,68318.0,68317.0,0.7216]
[1729336464679,0.065866,68317.0,68316.0,0.02593811]
[1729336464880,0.066066,68317.0,68316.0,0.74753811]
[1729336465079,0.066066,68317.0,68316.0,0.02593811]
[1729336465287,0.066066,68317.0,68316.0,0.83963236]
[1729336467784,0.066066,68317.0,68316.0,0.83965511]
[1729336471793,0.066066,68317.0,68316.0,0.11805511]
[1729336471995,0.066066,68317.0,68316.0,0.83965511]
[1729336472496,0.066066,68317.0,68316.0,0.74753811]
[1729336472693,0.066066,68317.0,68316.0,0.83988172]
[1729336473299,0.066066,68317.0,68316.0,0.74753811]
[1729336473502,0.066066,68317.0,68316.0,0.02593811]
[1729336473808,0.066066,68317.0,68316.0,0.74753811]
[1729336474801,0.066066,68317.0,68316.0,0.81340511]
[1729336480205,0.066066,68317.0,68316.0,0.18409313]
[1729336480613,0.066066,68317.0,68316.0,0.90569313]
[1729336482312,0.066066,68317.0,68316.0,0.90565794]
[1729336483115,0.066066,68317.0,68316.0,0.90565875]
[1729336485910,0.066066,68317.0,68316.0,0.83979175]
[1729336486611,0.066066,68317.0,68316.0,0.11819175]
[1729336486918,0.066066,68317.0,68316.0,0.83979175]
[1729336487318,0.066066,68317.0,68316.0,0.83982955]
[1729336487518,0.066066,68317.0,68316.0,0.11822955]
[1729336487719,0.066066,68317.0,68316.0,0.83982955]
[1729336488223,0.12408367,68317.0,68316.0,0.83982955]
[1729336488517,0.12408367,68317.0,68316.0,0.69628262]
[1729336490311,0.12408367,68317.0,68316.0,0.02685181]
[1729336490518,0.12408367,68317.0,68316.0,0.7216]
[1729336495019,0.065867,68316.0,68315.0,0.09174353]
[1729336495323,0.066067,68316.0,68315.0,1.01317737]
[1729336495520,0.066067,68316.0,68315.0,0.29157737]
[1729336495726,0.066067,68316.0,68315.0,1.01317737]
[1729336497918,0.066067,68316.0,68315.0,0.29157737]
[1729336498125,0.066067,68316.0,68315.0,1.01317737]
[1729336499313,0.066067,68316.0,68315.0,0.29157737]
[1729336499730,0.066067,68316.0,68315.0,1.01317737]
[1729336501124,0.066067,68316.0,68315.0,0.94731037]
[1729336503428,0.066067,68316.0,68315.0,0.81334453]
[1729336507122,0.066067,68316.0,68315.0,0.09174453]
[1729336507328,0.066067,68316.0,68315.0,0.81334453]
[1729336509232,0.066067,68316.0,68315.0,0.09174453]
[1729336509422,0.066067,68316.0,68315.0,0.81334453]
[1729336510330,0.066067,68316.0,68315.0,0.90633534]
[1729336512824,0.066067,68316.0,68315.0,0.84046734]
[1729336514129,0.066067,68316.0,68315.0,0.94843842]
[1729336515239,0.066067,68316.0,68315.0,1.01430642]
[1729336516334,0.066067,68316.0,68315.0,0.29270642]
[1729336516528,0.066067,68316.0,68315.0,1.01430642]
[1729336518228,0.066067,68316.0,68315.0,1.13141695]
[1729336519434,0.066067,68316.0,68315.0,1.01430642]
[1729336520221,0.066067,68316.0,68315.0,0.29270642]
[1729336520933,0.066067,68316.0,68315.0,1.01430642]
[1729336521731,0.066067,68316.0,68315.0,0.29270642]
[1729336522243,0.066067,68316.0,68315.0,1.01430642]
[1729336523939,0.066067,68316.0,68315.0,1.13140308]
[1729336524240,0.066067,68316.0,68315.0,0.40980308]
[1729336524538,0.066067,68316.0,68315.0,1.13140308]
[1729336524739,0.066067,68316.0,68315.0,1.13160036]
[1729336524943,0.066067,68316.0,68315.0,1.0145037]
[1729336525128,0.066067,68316.0,68315.0,1.13159911]
[1729336525332,0.066067,68316.0,68315.0,0.81334453]
[1729336527838,0.066067,68316.0,68315.0,0.09174453]
[1729336528039,0.066067,68316.0,68315.0,0.81334453]
[1729336532737,0.066067,68316.0,68315.0,0.09174453]
[1729336533045,0.066067,68316.0,68315.0,0.81334453]
[1729336533441,0.066067,68316.0,68315.0,1.1377517]
[1729336534536,0.066067,68316.0,68315.0,0.4161517]
[1729336534848,0.066067,68316.0,68315.0,1.1377517]
[1729336535739,0.066067,68316.0,68315.0,0.4161517]
[1729336535937,0.066067,68316.0,68315.0,1.1377517]
[1729336536437,0.066067,68316.0,68315.0,1.21613715]
[1729336536639,0.066067,68316.0,68315.0,0.49453715]
[1729336536840,0.066067,68316.0,68315.0,1.21613715]
[1729336537947,0.066067,68316.0,68315.0,1.0272354]
[1729336538148,0.066067,68316.0,68315.0,1.14433751]
[1729336538448,0.066067,68316.0,68315.0,1.0272354]
[1729336538941,0.066067,68316.0,68315.0,1.14433751]
[1729336539149,0.066067,68316.0,68315.0,1.21020551]
[1729336539343,0.066067,68316.0,68315.0,1.21077682]
[1729336541948,0.066067,68316.0,68315.0,0.48917682]
[1729336542149,0.066067,68316.0,68315.0,1.21077682]
[1729336543141,0.066067,68316.0,68315.0,1.21068168]
[1729336543344,0.066067,68316.0,68315.0,1.09357957]
[1729336544142,0.066067,68316.0,68315.0,1.09368272]
[1729336544552,0.066067,68316.0,68315.0,1.02781472]
[1729336545057,0.066067,68316.0,68315.0,1.28322896]
[1729336545252,0.066067,68316.0,68315.0,1.15137374]
[1729336545446,0.066067,68316.0,68315.0,1.28322896]
[1729336546954,0.066067,68316.0,68315.0,0.56162896]
[1729336547157,0.066067,68316.0,68315.0,1.28322896]
[1729336547455,0.066067,68316.0,68315.0,1.34909696]
[1729336548450,0.066067,68316.0,68315.0,0.94519975]
[1729336548648,0.066067,68316.0,68315.0,0.81334453]
[1729336549763,0.066067,68316.0,68315.0,0.85726524]
[1729336549957,0.066067,68316.0,68315.0,0.81334453]
[1729336551061,0.066067,68316.0,68315.0,0.09174453]
[1729336551256,0.066067,68316.0,68315.0,0.81334453]
[1729336555466,0.066067,68316.0,68315.0,1.09352059]
[1729336556966,0.066067,68316.0,68315.0,1.21064747]
[1729336557170,0.066067,68316.0,68315.0,1.01516906]
[1729336557668,0.066067,68316.0,68315.0,1.1322824]
[1729336557868,0.066067,68316.0,68315.0,1.2105409]
[1729336558055,0.066067,68316.0,68315.0,1.1322824]
[1729336558262,0.066067,68316.0,68315.0,0.4106824]
[1729336558464,0.066067,68316.0,68315.0,1.1322824]
[1729336559171,0.066067,68316.0,68315.0,0.4106824]
[1729336559365,0.066067,68316.0,68315.0,1.1322824]
[1729336559671,0.066067,68316.0,68315.0,1.21052214]
[1729336560261,0.066067,68316.0,68315.0,1.0934088]
[1729336560467,0.066067,68316.0,68315.0,1.01516906]
[1729336562767,0.066067,68316.0,68315.0,1.13649717]
[1729336563572,0.066067,68316.0,68315.0,0.81334453]
[1729336570569,0.066067,68316.0,68315.0,1.00885063]
[1729336570980,0.066067,68316.0,68315.0,1.12592586]
[1729336571266,0.066067,68316.0,68315.0,1.00885063]
[1729336572666,0.066067,68316.0,68315.0,0.28725063]
[1729336572865,0.066067,68316.0,68315.0,1.00885063]
[1729336575876,0.066067,68316.0,68315.0,1.12593176]
[1729336576870,0.066067,68316.0,68315.0,1.1259343]
[1729336577269,0.066067,68316.0,68315.0,1.00885063]
[1729336577469,0.066067,68316.0,68315.0,1.12593492]
[1729336577782,0.066067,68316.0,68315.0,1.00885063]
[1729336578472,0.066067,68316.0,68315.0,0.81334453]
[1729336579878,0.05039455,68316.0,68315.0,0.81334453]
[1729336581176,0.0002,68316.0,68315.0,0.81334453]
[1729336581372,0.066067,68316.0,68315.0,0.81334453]
[1729336584482,0.066067,68316.0,68315.0,0.87188933]
[1729336585185,0.066067,68316.0,68315.0,0.81334453]
[1729336585683,0.066067,68316.0,68315.0,1.11114189]
[1729336585881,0.0002,68316.0,68315.0,1.11114189]
[1729336586084,0.0002,68316.0,68315.0,1.00868849]
[1729336586280,0.0002,68316.0,68315.0,1.00866933]
[1729336588881,0.0002,68316.0,68315.0,0.28706933]
[1729336589085,0.0002,68316.0,68315.0,1.00866933]
[1729336589286,0.0002,68316.0,68315.0,1.12575362]
[1729336591084,0.0002,68316.0,68315.0,1.02081316]
[1729336591287,0.0002,68316.0,68315.0,1.12581148]
[1729336591489,0.03703655,68319.0,68315.0,0.94285919]
[1729336591689,0.03703655,68319.0,68316.0,0.26124866]
[1729336591991,0.03703655,68319.0,68317.0,0.19538266]
[1729336592178,0.03703655,68319.0,68318.0,0.19538266]
[1729336592988,0.03703655,68319.0,68318.0,0.91698266]
[1729336593687,0.03703655,68319.0,68318.0,0.7216]
[1729336595096,0.03703655,68319.0,68318.0,0.787465]
[1729336596593,0.03703655,68319.0,68318.0,0.065865]
[1729336596797,0.03703655,68319.0,68318.0,0.787465]
[1729336597092,0.03703655,68319.0,68318.0,0.065865]
[1729336597284,0.03703655,68319.0,68318.0,0.787465]
[1729336597485,0.03703655,68319.0,68318.0,0.065865]
[1729336597688,0.03703655,68319.0,68318.0,0.787465]
[1729336598397,0.03703655,68319.0,68318.0,0.065865]
[1729336598598,0.03703655,68319.0,68318.0,0.787465]
[1729336598894,0.03703655,68319.0,68318.0,0.065865]
[1729336599097,0.03703655,68319.0,68318.0,0.787465]
[1729336600488,0.03703655,68319.0,68318.0,0.89241683]
[1729336600800,0.03703655,68319.0,68318.0,0.98280466]
[1729336601099,0.03703655,68319.0,68318.0,0.26119684]
[1729336601400,0.03703655,68319.0,68318.0,0.98279684]
[1729336603299,0.03703655,68319.0,68318.0,0.98288017]
[1729336603692,0.03703655,68319.0,68318.0,0.91701517]
[1729336605496,0.03703655,68319.0,68318.0,1.03409946]
[1729336607991,0.03703655,68319.0,68318.0,0.91701517]
[1729336608697,0.03703655,68319.0,68318.0,1.03415238]
[1729336610400,0.03703655,68319.0,68318.0,0.91701517]
[1729336610601,0.03703655,68319.0,68318.0,0.91695055]
[1729336611597,0.03703655,68319.0,68318.0,0.81199626]
[1729336614497,0.03703655,68319.0,68318.0,0.45119626]
[1729336615705,0.03703655,68319.0,68318.0,0.3608]
[1729336620710,1.07615655,68319.0,68318.0,0.3608]
[1729336620901,0.065868,68314.0,68313.0,0.0002]
[1729336621099,0.066068,68314.0,68313.0,0.0002]
[1729336621303,1.105228,68314.0,68313.0,0.0002]
[1729336622111,0.666068,68314.0,68313.0,0.0002]
[1729336625414,0.666068,68314.0,68313.0,0.07323791]
[1729336627814,0.666068,68314.0,68313.0,0.0002]
[1729336629621,0.066068,68314.0,68313.0,0.0002]
[1729336629821,0.666068,68314.0,68313.0,0.0002]
[1729336630617,0.666068,68314.0,68313.0,4.309e-05]
[1729336631518,0.066068,68314.0,68313.0,4.309e-05]
[1729336636927,1.566068,68314.0,68313.0,4.309e-05]
[1729336637123,1.62478859,68314.0,68313.0,4.309e-05]
[1729336637636,1.566068,68314.0,68313.0,4.309e-05]
[1729336638524,1.62480066,68314.0,68313.0,4.309e-05]
[1729336638824,1.566068,68314.0,68313.0,0.073081]
[1729336640727,1.566068,68314.0,68313.0,4.309e-05]
[1729336655440,1.566068,68314.0,68313.0,0.09156764]
[1729336655631,1.566068,68314.0,68313.0,4.309e-05]
[1729336665541,1.566068,68314.0,68313.0,0.09157864]
[1729336668953,1.55898359,68314.0,68311.0,0.3608]
[1729336669144,0.06607,68312.0,68311.0,0.3608]
[1729336669347,0.12485359,68312.0,68311.0,0.3608]
[1729336670244,0.065875,68307.0,68306.0,0.09104062]
[1729336670444,0.066075,68307.0,68306.0,0.09104062]
[1729336674457,0.066075,68307.0,68306.0,0.45184062]
[1729336675849,0.066075,68307.0,68306.0,0.65067584]
[1729336676039,0.066075,68307.0,68306.0,0.28987584]
[1729336676244,0.066075,68307.0,68306.0,0.65067584]
[1729336679550,0.066075,68307.0,68306.0,0.75319026]
[1729336679750,0.066075,68307.0,68306.0,0.54384937]
[1729336680248,0.066075,68307.0,68306.0,0.64636379]
[1729336680656,0.066075,68307.0,68306.0,0.75337406]
[1729336681258,0.066075,68307.0,68306.0,0.39257406]
[1729336681554,0.066075,68307.0,68306.0,0.39255799]
[1729336682645,0.066075,68307.0,68306.0,0.28556379]
[1729336682851,0.12422109,68307.0,68306.0,0.09104062]
[1729336683151,0.12422109,68307.0,68306.0,0.02634062]
[1729336683357,0.12422109,68307.0,68305.0,0.3608]
[1729336683557,0.12422209,68306.0,68305.0,0.3608]
[1729336684060,0.065877,68305.0,68304.0,0.3608]
[1729336684255,0.12422309,68305.0,68304.0,0.3608]
[1729336687356,0.066077,68305.0,68304.0,0.3608]
[1729336687863,0.12413986,68305.0,68304.0,0.3608]
[1729336688050,0.065883,68299.0,68296.0,0.3608]
[1729336688250,0.066085,68297.0,68296.0,0.3608]
[1729336688452,0.065891,68291.0,68290.0,0.3608]
[1729336688653,0.3608,68296.0,68289.0,0.02673093]
[1729336688855,0.3608,68296.0,68283.0,0.3608]
[1729336688856,0.065897,68284.0,68283.0,0.3608]
[1729336689251,0.066097,68284.0,68283.0,0.3608]
[1729336689452,0.066097,68284.0,68283.0,0.38713279]
[1729336690958,0.066097,68284.0,68283.0,0.48014025]
[1729336693162,0.066097,68284.0,68283.0,0.38713279]
[1729336695364,0.066097,68284.0,68283.0,0.47467973]
[1729336698269,0.066097,68284.0,68283.0,0.38713279]
[1729336698569,0.066097,68284.0,68283.0,0.47467973]
[1729336698966,0.066097,68284.0,68283.0,0.46527763]
[1729336699162,0.066097,68284.0,68283.0,0.10447763]
[1729336699367,0.066097,68284.0,68283.0,0.46527763]
[1729336700074,0.066097,68284.0,68283.0,0.10447763]
[1729336700263,0.066097,68284.0,68283.0,0.46527763]
[1729336702865,0.066097,68284.0,68283.0,0.55282457]
[1729336703671,0.066097,68284.0,68283.0,0.55279269]
[1729336705277,0.066097,68284.0,68283.0,0.46524575]
[1729336705979,0.066097,68284.0,68283.0,0.38713279]
[1729336706181,0.066097,68284.0,68283.0,0.45303079]
[1729336709782,0.065894,68288.0,68283.0,0.38713279]
[1729336710077,0.0002,68290.0,68287.0,0.065895]
[1729336710281,0.065893,68289.0,68288.0,0.0319]
[1729336710675,0.0002,68290.0,68288.0,0.0319]
[1729336710875,0.0002,68290.0,68289.0,0.096793]
[1729336712085,0.065886,68296.0,68292.0,0.065889]
[1729336712291,0.065886,68296.0,68295.0,0.3608]
[1729336712885,0.015986,68296.0,68295.0,0.3608]
[1729336713089,0.0002,68297.0,68295.0,0.45187068]
[1729336713285,0.065886,68296.0,68295.0,0.3608]
[1729336713590,0.065886,68296.0,68295.0,0.426687]
[1729336715392,0.065886,68296.0,68295.0,0.51779129]
[1729336716385,0.065886,68296.0,68295.0,0.54366111]
[1729336716992,0.065886,68296.0,68295.0,0.18286111]
[1729336717295,0.065886,68296.0,68295.0,0.54366111]
[1729336717491,0.065886,68296.0,68295.0,0.18286111]
[1729336717798,0.065886,68296.0,68295.0,0.54367101]
[1729336719792,0.066078,68305.0,68295.0,1.30473876]
[1729336719995,0.066078,68305.0,68304.0,0.3608]
[1729336719996,0.06328084,68305.0,68304.0,0.3608]
[1729336724203,0.06328084,68305.0,68304.0,0.38756897]
[1729336724592,0.06328084,68305.0,68304.0,0.30953366]
[1729336724791,0.065874,68309.0,68299.0,0.0002]
[1729336724992,0.066082,68300.0,68299.0,0.02640417]
[1729336725494,0.066082,68300.0,68299.0,0.0002]
[1729336725696,0.72424222,68300.0,68299.0,0.0002]
[1729336726196,0.72424222,68300.0,68291.0,0.0002]
[1729336726197,0.06589,68292.0,68291.0,0.0002]
[1729336726500,0.12384071,68292.0,68291.0,0.0002]
[1729336726892,0.15614071,68292.0,68291.0,0.0002]
[1729336727092,0.15603895,68292.0,68291.0,0.0002]
[1729336727496,0.18783895,68292.0,68291.0,0.0002]
[1729336728198,0.13019,68292.0,68291.0,0.0002]
[1729336736600,0.09839,68292.0,68291.0,0.0002]
[1729336738985,0.06609,68292.0,68291.0,0.0002]
[1729336752210,0.06609,68292.0,68291.0,0.08788767]
[1729336752708,0.06609,68292.0,68291.0,0.0002]
[1729336752899,0.06609,68292.0,68291.0,0.08791755]
[1729336753102,0.06609,68292.0,68291.0,0.0002]
[1729336753601,0.06609,68292.0,68291.0,0.09251365]
[1729336754004,0.06609,68292.0,68291.0,0.0002]
[1729336754202,0.06609,68292.0,68291.0,0.09256968]
[1729336754696,0.06609,68292.0,68291.0,0.12426968]
[1729336758316,0.06609,68292.0,68291.0,0.0319]
[1729336766313,0.06609,68292.0,68291.0,0.12435947]
[1729336769001,0.06609,68292.0,68291.0,0.124883]
[1729336773518,0.1234316,68292.0,68291.0,0.0319]
[1729336775018,0.06609,68292.0,68291.0,0.0319]
[1729336780916,0.065891,68291.0,68290.0,0.0002]